[Event "Live Chess"]
[Site "Chess.com"]
[Date "2024.06.02"]
[Round "-"]
[White "upoe610"]
[Black "Greenbecker"]
[Result "1-0"]
[WhiteElo "2189"]
[BlackElo "1723"]
[TimeControl "300"]
[EndTime "23:46:40 PDT"]
[Termination "upoe610 won on time"]

1. c4 {[%clk 0:04:50.9]} 1... e5 {[%clk 0:04:57.5]} 2. g3 {[%clk 0:04:49.8]}
2... Nf6 {[%clk 0:04:55.7]} 3. Bg2 {[%clk 0:04:48.7]} 3... d5 {[%clk 0:04:53.7]}
4. cxd5 {[%clk 0:04:47]} 4... Nxd5 {[%clk 0:04:52.3]} 5. Nf3 {[%clk 0:04:46.3]}
5... Nc6 {[%clk 0:04:50.2]} 6. O-O {[%clk 0:04:44.7]} 6... Bd6 {[%clk
0:04:48.6]} 7. Nc3 {[%clk 0:04:40.7]} 7... Nxc3 {[%clk 0:04:47.1]} 8. bxc3
{[%clk 0:04:38.1]} 8... O-O {[%clk 0:04:46]} 9. d4 {[%clk 0:04:35]} 9... exd4
{[%clk 0:04:44.8]} 10. cxd4 {[%clk 0:04:34.9]} 10... Bg4 {[%clk 0:04:42.8]} 11.
Bb2 {[%clk 0:04:33.3]} 11... Re8 {[%clk 0:04:38.9]} 12. e3 {[%clk 0:04:31.4]}
12... Qf6 {[%clk 0:04:34.4]} 13. h3 {[%clk 0:04:26.8]} 13... Bh5 {[%clk
0:04:30.7]} 14. g4 {[%clk 0:04:25.7]} 14... Bg6 {[%clk 0:04:29.6]} 15. Nd2
{[%clk 0:04:24.2]} 15... Qh4 {[%clk 0:04:17.4]} 16. Nc4 {[%clk 0:04:22]} 16...
Rad8 {[%clk 0:04:11.8]} 17. Nxd6 {[%clk 0:04:20.7]} 17... Rxd6 {[%clk
0:04:10.6]} 18. d5 {[%clk 0:04:18.1]} 18... Ne5 {[%clk 0:04:07.6]} 19. Qd4
{[%clk 0:04:14.4]} 19... f6 {[%clk 0:03:34.7]} 20. Rac1 {[%clk 0:04:10.6]} 20...
Nc6 {[%clk 0:03:06.6]} 21. Qf4 {[%clk 0:04:09]} 21... Ne7 {[%clk 0:02:40.8]} 22.
Rxc7 {[%clk 0:04:06.3]} 22... Nxd5 {[%clk 0:02:37.1]} 23. Qxd6 {[%clk
0:04:04.2]} 23... Nxc7 {[%clk 0:02:26.1]} 24. Qxc7 {[%clk 0:04:02.8]} 24... h5
{[%clk 0:02:14.3]} 25. Bd4 {[%clk 0:03:44.1]} 25... hxg4 {[%clk 0:02:06.1]} 26.
hxg4 {[%clk 0:03:41.9]} 26... Qxg4 {[%clk 0:02:01]} 27. Qg3 {[%clk 0:03:35.9]}
27... Qh5 {[%clk 0:01:48.3]} 28. Rc1 {[%clk 0:03:31.6]} 28... Be4 {[%clk
0:01:27.4]} 29. Bxe4 {[%clk 0:03:24.7]} 29... Rxe4 {[%clk 0:01:25.2]} 30. Rc8+
{[%clk 0:03:19.9]} 30... Kh7 {[%clk 0:01:19.1]} 31. Kf1 {[%clk 0:02:55.9]} 31...
Qd1+ {[%clk 0:01:10.9]} 32. Kg2 {[%clk 0:02:53.2]} 32... Rg4 {[%clk 0:01:08.8]}
33. Rc7 {[%clk 0:02:50.8]} 33... Rxg3+ {[%clk 0:01:05]} 34. Kxg3 {[%clk
0:02:49.7]} 34... Kg8 {[%clk 0:00:59.2]} 35. Bxa7 {[%clk 0:02:40.3]} 35... Qa4
{[%clk 0:00:54.6]} 36. Bd4 {[%clk 0:02:38.2]} 36... Qxa2 {[%clk 0:00:50.1]} 37.
Rxb7 {[%clk 0:02:34.4]} 37... Qa6 {[%clk 0:00:46]} 38. Ra7 {[%clk 0:02:29.5]}
38... Qd6+ {[%clk 0:00:42.7]} 39. Kf3 {[%clk 0:02:28.4]} 39... Qd5+ {[%clk
0:00:40.5]} 40. Kf4 {[%clk 0:02:27.2]} 40... g5+ {[%clk 0:00:38.4]} 41. Kg4
{[%clk 0:02:25.5]} 41... Qe4+ {[%clk 0:00:35.9]} 42. Kh5 {[%clk 0:02:23.6]}
42... Qh1+ {[%clk 0:00:30.4]} 43. Kg6 {[%clk 0:02:22.4]} 43... Qe4+ {[%clk
0:00:19.7]} 44. Kxf6 {[%clk 0:02:21.3]} 44... Qf3+ {[%clk 0:00:16.5]} 45. Kxg5
{[%clk 0:02:14.1]} 45... Qxf2 {[%clk 0:00:15.6]} 46. Rg7+ {[%clk 0:02:08.3]}
46... Kf8 {[%clk 0:00:13.4]} 47. Ra7 {[%clk 0:02:05.6]} 47... Qg3+ {[%clk
0:00:10.5]} 48. Kf6 {[%clk 0:02:03.8]} 48... Qf3+ {[%clk 0:00:09.1]} 49. Ke6
{[%clk 0:02:00.3]} 49... Qe4+ {[%clk 0:00:08]} 50. Kd6 {[%clk 0:01:49.8]} 50...
Qg6+ {[%clk 0:00:06.5]} 51. Kd5 {[%clk 0:01:48.3]} 51... Qf5+ {[%clk 0:00:05.3]}
52. Kc4 {[%clk 0:01:43.5]} 52... Qe6+ {[%clk 0:00:04]} 53. Kb5 {[%clk 0:01:41]}
53... Qf5+ {[%clk 0:00:02.2]} 54. Bc5+ {[%clk 0:01:39.8]} 1-0

[Event "Live Chess"]
[Site "Chess.com"]
[Date "2024.06.02"]
[Round "-"]
[White "AlanBstard10"]
[Black "Ferrarifan27"]
[Result "0-1"]
[WhiteElo "1167"]
[BlackElo "2116"]
[TimeControl "300"]
[EndTime "23:47:49 PDT"]
[Termination "Ferrarifan27 won by resignation"]

1. b4 {[%clk 0:04:56.4]} 1... Nf6 {[%clk 0:04:58.3]} 2. Bb2 {[%clk 0:04:55.8]}
2... d5 {[%clk 0:04:56.5]} 3. a3 {[%clk 0:04:55.1]} 3... Bf5 {[%clk 0:04:54.6]}
4. e3 {[%clk 0:04:54]} 4... e6 {[%clk 0:04:53.4]} 5. Be2 {[%clk 0:04:53.5]} 5...
Be7 {[%clk 0:04:51.5]} 6. Nf3 {[%clk 0:04:52.9]} 6... O-O {[%clk 0:04:49.7]} 7.
O-O {[%clk 0:04:52.5]} 7... Nbd7 {[%clk 0:04:47.3]} 8. c4 {[%clk 0:04:50.5]}
8... c6 {[%clk 0:04:41.3]} 9. cxd5 {[%clk 0:04:49]} 9... cxd5 {[%clk 0:04:39.9]}
10. Nc3 {[%clk 0:04:47.4]} 10... Rc8 {[%clk 0:04:37.4]} 11. Nd4 {[%clk
0:04:46.5]} 11... Bg6 {[%clk 0:04:36]} 12. Ncb5 {[%clk 0:04:35.2]} 12... a6
{[%clk 0:04:30.8]} 13. Nc3 {[%clk 0:04:33.1]} 13... Ne5 {[%clk 0:04:25.4]} 14.
f4 {[%clk 0:04:29.2]} 14... Nd3 {[%clk 0:04:19]} 15. Bxd3 {[%clk 0:04:28]} 15...
Bxd3 {[%clk 0:04:17.5]} 16. Rf3 {[%clk 0:04:26.9]} 16... Ne4 {[%clk 0:04:12.9]}
17. Nxe4 {[%clk 0:04:25.2]} 17... Bxe4 {[%clk 0:04:12.8]} 18. Rg3 {[%clk
0:04:21.4]} 18... Bf6 {[%clk 0:04:11.9]} 19. Rc1 {[%clk 0:04:18.3]} 19... Qb6
{[%clk 0:04:09.1]} 20. Rxc8 {[%clk 0:04:15.3]} 20... Rxc8 {[%clk 0:04:07.6]} 21.
Qg4 {[%clk 0:04:07.6]} 21... g6 {[%clk 0:04:00]} 22. h4 {[%clk 0:03:57.4]} 22...
h5 {[%clk 0:03:56.7]} 23. Qe2 {[%clk 0:03:47.8]} 23... a5 {[%clk 0:03:52]} 24.
Qb5 {[%clk 0:03:35.9]} 24... Qxb5 {[%clk 0:03:49.6]} 25. Nxb5 {[%clk 0:03:35.1]}
25... Bxb2 {[%clk 0:03:48.3]} 26. Nd6 {[%clk 0:03:34.3]} 26... Rc1+ {[%clk
0:03:42]} 27. Kf2 {[%clk 0:03:30.9]} 27... Bxa3 {[%clk 0:03:40.2]} 28. Nxe4
{[%clk 0:03:27.7]} 28... dxe4 {[%clk 0:03:39.6]} 0-1

[Event "Live Chess"]
[Site "Chess.com"]
[Date "2024.06.02"]
[Round "-"]
[White "Isambard_Thomas"]
[Black "KeithArkell"]
[Result "1-0"]
[WhiteElo "2172"]
[BlackElo "2416"]
[TimeControl "300"]
[EndTime "23:47:56 PDT"]
[Termination "Isambard_Thomas won by checkmate"]

1. d4 {[%clk 0:04:59.5]} 1... e6 {[%clk 0:04:58.8]} 2. Nf3 {[%clk 0:04:59]} 2...
Nf6 {[%clk 0:04:57.6]} 3. Bg5 {[%clk 0:04:58.5]} 3... c5 {[%clk 0:04:57.2]} 4.
c3 {[%clk 0:04:57.1]} 4... cxd4 {[%clk 0:04:56.7]} 5. Qxd4 {[%clk 0:04:53.3]}
5... Nc6 {[%clk 0:04:55.3]} 6. Qa4 {[%clk 0:04:51.7]} 6... Be7 {[%clk
0:04:53.9]} 7. e3 {[%clk 0:04:50.9]} 7... a6 {[%clk 0:04:53.2]} 8. Bd3 {[%clk
0:04:50.1]} 8... O-O {[%clk 0:04:52.4]} 9. Qc2 {[%clk 0:04:49.4]} 9... b5 {[%clk
0:04:51.6]} 10. Bxf6 {[%clk 0:04:44.5]} 10... Bxf6 {[%clk 0:04:51]} 11. Bxh7+
{[%clk 0:04:44]} 11... Kh8 {[%clk 0:04:50.4]} 12. Bd3 {[%clk 0:04:43.5]} 12...
b4 {[%clk 0:04:49.8]} 13. h4 {[%clk 0:04:35.7]} 13... Rb8 {[%clk 0:04:48]} 14.
Ng5 {[%clk 0:04:32.7]} 14... Ne5 {[%clk 0:04:44.7]} 15. Bxa6 {[%clk 0:04:28.7]}
15... g6 {[%clk 0:04:41.4]} 16. Be2 {[%clk 0:03:37.2]} 16... Bxg5 {[%clk
0:04:39.5]} 17. hxg5+ {[%clk 0:03:35.4]} 17... Kg7 {[%clk 0:04:39]} 18. f4
{[%clk 0:03:29]} 18... Nc6 {[%clk 0:04:36.2]} 19. Nd2 {[%clk 0:03:14.7]} 19...
d5 {[%clk 0:04:06.9]} 20. cxb4 {[%clk 0:03:07.4]} 20... Qb6 {[%clk 0:04:04.5]}
21. Qc3+ {[%clk 0:02:39.3]} 21... d4 {[%clk 0:04:03.8]} 22. exd4 {[%clk
0:02:35.8]} 22... Nxd4 {[%clk 0:03:26.2]} 23. Qh3 {[%clk 0:02:33.3]} 23... Nc2+
{[%clk 0:03:19.9]} 24. Kd1 {[%clk 0:02:11.3]} 24... Ne3+ {[%clk 0:03:15.8]} 25.
Kc1 {[%clk 0:02:08.2]} 25... Qc7+ {[%clk 0:02:36]} 26. Nc4 {[%clk 0:02:02.7]}
26... Rg8 {[%clk 0:02:22.3]} 27. Qh6# {[%clk 0:01:59.1]} 1-0

[Event "Live Chess"]
[Site "Chess.com"]
[Date "2024.06.02"]
[Round "-"]
[White "Hoogleboogle"]
[Black "FlyingChessKestrel13"]
[Result "0-1"]
[WhiteElo "1417"]
[BlackElo "2081"]
[TimeControl "300"]
[EndTime "23:48:18 PDT"]
[Termination "FlyingChessKestrel13 won by resignation"]

1. d4 {[%clk 0:04:55.9]} 1... d5 {[%clk 0:04:59.1]} 2. c4 {[%clk 0:04:53.5]}
2... dxc4 {[%clk 0:04:57.9]} 3. e4 {[%clk 0:04:51.5]} 3... e5 {[%clk 0:04:56.5]}
4. d5 {[%clk 0:04:49.7]} 4... Nf6 {[%clk 0:04:54.8]} 5. Nc3 {[%clk 0:04:47.3]}
5... b5 {[%clk 0:04:53.9]} 6. Bg5 {[%clk 0:04:44.7]} 6... Bb4 {[%clk 0:04:47.9]}
7. a3 {[%clk 0:04:42.4]} 7... Bxc3+ {[%clk 0:04:46]} 8. bxc3 {[%clk 0:04:40.8]}
8... Nbd7 {[%clk 0:04:45]} 9. Rb1 {[%clk 0:04:26.5]} 9... a6 {[%clk 0:04:42.9]}
10. Nf3 {[%clk 0:04:24]} 10... O-O {[%clk 0:04:40.8]} 11. Be2 {[%clk 0:04:07.6]}
11... Nc5 {[%clk 0:04:39.6]} 12. O-O {[%clk 0:03:56.3]} 12... Ncxe4 {[%clk
0:04:36.7]} 13. Bd2 {[%clk 0:03:42.3]} 13... Qxd5 {[%clk 0:04:30.7]} 14. Ne1
{[%clk 0:03:15]} 14... Qxd2 {[%clk 0:04:23.6]} 15. Qxd2 {[%clk 0:03:12.9]} 15...
Nxd2 {[%clk 0:04:22.6]} 16. Rd1 {[%clk 0:03:10.2]} 16... Nxf1 {[%clk 0:04:19.9]}
17. Kxf1 {[%clk 0:03:07.2]} 17... Bf5 {[%clk 0:04:18.2]} 18. Bf3 {[%clk
0:02:53.6]} 18... Rad8 {[%clk 0:04:15.5]} 19. Rxd8 {[%clk 0:02:47.8]} 19... Rxd8
{[%clk 0:04:13.8]} 20. Bb7 {[%clk 0:02:47.1]} 20... Rd6 {[%clk 0:04:10]} 21. Nf3
{[%clk 0:02:39.7]} 21... Nd7 {[%clk 0:04:07.8]} 22. Nh4 {[%clk 0:02:22.4]} 22...
Be6 {[%clk 0:04:05.5]} 23. Bc8 {[%clk 0:02:16]} 23... g6 {[%clk 0:04:02.4]} 24.
Nf3 {[%clk 0:02:11.3]} 24... f6 {[%clk 0:04:01.1]} 25. g3 {[%clk 0:02:08.2]}
25... Nc5 {[%clk 0:04:00.2]} 26. Bxe6+ {[%clk 0:02:02.3]} 26... Nxe6 {[%clk
0:03:59.1]} 27. Ke2 {[%clk 0:01:59.5]} 27... Rd3 {[%clk 0:03:57.5]} 28. Ne1
{[%clk 0:01:46.2]} 28... Rxc3 {[%clk 0:03:56.1]} 29. Kd2 {[%clk 0:01:43.7]}
29... Rxa3 {[%clk 0:03:54.8]} 30. Kc2 {[%clk 0:01:42.1]} 30... Ra2+ {[%clk
0:03:53.2]} 31. Kc3 {[%clk 0:01:39]} 31... Rxf2 {[%clk 0:03:52.9]} 0-1

[Event "Live Chess"]
[Site "Chess.com"]
[Date "2024.06.02"]
[Round "-"]
[White "MagnersCarlsberg2870"]
[Black "Ziipyyy"]
[Result "1-0"]
[WhiteElo "1824"]
[BlackElo "1301"]
[TimeControl "300"]
[EndTime "23:48:25 PDT"]
[Termination "MagnersCarlsberg2870 won by checkmate"]

1. d4 {[%clk 0:04:57.8]} 1... Nf6 {[%clk 0:04:58.7]} 2. Nf3 {[%clk 0:04:55.6]}
2... d6 {[%clk 0:04:58.2]} 3. Nc3 {[%clk 0:04:53]} 3... g6 {[%clk 0:04:57.4]} 4.
e4 {[%clk 0:04:52]} 4... Bg7 {[%clk 0:04:56.2]} 5. h3 {[%clk 0:04:51.2]} 5...
O-O {[%clk 0:04:54.2]} 6. Bc4 {[%clk 0:04:50.2]} 6... e5 {[%clk 0:04:52.9]} 7.
dxe5 {[%clk 0:04:48.8]} 7... dxe5 {[%clk 0:04:50.9]} 8. Qxd8 {[%clk 0:04:45.4]}
8... Rxd8 {[%clk 0:04:49.5]} 9. Nxe5 {[%clk 0:04:44.6]} 9... Nxe4 {[%clk
0:04:40.4]} 10. Nxf7 {[%clk 0:04:23.4]} 10... Re8 {[%clk 0:04:29.3]} 11. Nxe4
{[%clk 0:04:16.1]} 11... Rxe4+ {[%clk 0:04:26.8]} 12. Kf1 {[%clk 0:04:09.7]}
12... Rxc4 {[%clk 0:04:25.2]} 13. Ng5 {[%clk 0:04:00.9]} 13... Rxc2 {[%clk
0:04:18.8]} 14. Be3 {[%clk 0:03:58.9]} 14... Bf5 {[%clk 0:04:14.5]} 15. Rd1
{[%clk 0:03:56.2]} 15... Nc6 {[%clk 0:04:11.7]} 16. g4 {[%clk 0:03:54.5]} 16...
h6 {[%clk 0:03:49.8]} 17. gxf5 {[%clk 0:03:50.5]} 17... hxg5 {[%clk 0:03:48.9]}
18. Bxg5 {[%clk 0:03:49.4]} 18... gxf5 {[%clk 0:03:44.9]} 19. h4 {[%clk
0:03:47.5]} 19... Re8 {[%clk 0:03:39.9]} 20. h5 {[%clk 0:03:44.6]} 20... Ree2
{[%clk 0:03:38.3]} 21. Rh2 {[%clk 0:03:43.4]} 21... Be5 {[%clk 0:03:36.3]} 22.
Rg2 {[%clk 0:03:39.4]} 22... Nd4 {[%clk 0:03:32.9]} 23. Bf6+ {[%clk 0:03:33.4]}
23... Kf7 {[%clk 0:03:29.1]} 24. Bxe5 {[%clk 0:03:31.4]} 24... Nf3 {[%clk
0:03:26.1]} 25. Rg7+ {[%clk 0:03:28.6]} 25... Kf8 {[%clk 0:03:23.9]} 26. Rd8#
{[%clk 0:03:23.5]} 1-0

[Event "Live Chess"]
[Site "Chess.com"]
[Date "2024.06.02"]
[Round "-"]
[White "JohanKjeldahl"]
[Black "juniortay"]
[Result "0-1"]
[WhiteElo "1859"]
[BlackElo "2407"]
[TimeControl "300"]
[EndTime "23:49:01 PDT"]
[Termination "juniortay won by resignation"]

1. c4 {[%clk 0:04:57.4]} 1... e6 {[%clk 0:04:58.9]} 2. d4 {[%clk 0:04:54.2]}
2... d5 {[%clk 0:04:57.8]} 3. Nc3 {[%clk 0:04:53]} 3... c5 {[%clk 0:04:56.9]} 4.
cxd5 {[%clk 0:04:50.6]} 4... exd5 {[%clk 0:04:56.1]} 5. Nf3 {[%clk 0:04:49.6]}
5... Nc6 {[%clk 0:04:55.1]} 6. e3 {[%clk 0:04:44.1]} 6... Nf6 {[%clk 0:04:53.5]}
7. Bd3 {[%clk 0:04:40.6]} 7... c4 {[%clk 0:04:51.2]} 8. Bc2 {[%clk 0:04:38.7]}
8... Bb4 {[%clk 0:04:50.7]} 9. Bd2 {[%clk 0:04:35.2]} 9... O-O {[%clk
0:04:46.4]} 10. O-O {[%clk 0:04:32.9]} 10... Re8 {[%clk 0:04:45.6]} 11. h3
{[%clk 0:04:31.5]} 11... Bxc3 {[%clk 0:04:33.2]} 12. bxc3 {[%clk 0:04:26.3]}
12... Ne4 {[%clk 0:04:31.5]} 13. Rb1 {[%clk 0:04:18.6]} 13... Rb8 {[%clk
0:04:28.5]} 14. Be1 {[%clk 0:04:05.7]} 14... b5 {[%clk 0:04:23.4]} 15. a4 {[%clk
0:03:51.1]} 15... a6 {[%clk 0:04:20.5]} 16. axb5 {[%clk 0:03:48.5]} 16... axb5
{[%clk 0:04:20.4]} 17. Bxe4 {[%clk 0:03:44.3]} 17... Rxe4 {[%clk 0:04:19.1]} 18.
Nd2 {[%clk 0:03:42.9]} 18... Re8 {[%clk 0:04:17.9]} 19. Qf3 {[%clk 0:03:39.8]}
19... g6 {[%clk 0:04:09.6]} 20. Rb2 {[%clk 0:03:26.1]} 20... Bf5 {[%clk
0:04:07.8]} 21. g4 {[%clk 0:03:21.8]} 21... Bd3 {[%clk 0:04:06.5]} 22. Qg3
{[%clk 0:03:01.8]} 22... Bxf1 {[%clk 0:03:55.6]} 23. Kxf1 {[%clk 0:02:58.9]}
23... b4 {[%clk 0:03:53.4]} 24. Nb1 {[%clk 0:02:48.3]} 24... bxc3 {[%clk
0:03:49.7]} 25. Rxb8 {[%clk 0:02:45.2]} 25... Qxb8 {[%clk 0:03:48.5]} 26. Nxc3
{[%clk 0:02:44.2]} 26... Qxg3 {[%clk 0:03:47.1]} 27. fxg3 {[%clk 0:02:42.5]}
27... Ne7 {[%clk 0:03:45.8]} 28. Ke2 {[%clk 0:02:38.7]} 28... Rb8 {[%clk
0:03:44.2]} 29. Bd2 {[%clk 0:02:36.4]} 29... Ra8 {[%clk 0:03:30.3]} 30. e4
{[%clk 0:02:34.4]} 30... dxe4 {[%clk 0:03:28.6]} 31. Nxe4 {[%clk 0:02:33.4]}
31... Nd5 {[%clk 0:03:27.6]} 32. Kf3 {[%clk 0:02:23.7]} 32... Ra3+ {[%clk
0:03:24]} 33. Kf2 {[%clk 0:02:20.6]} 33... c3 {[%clk 0:03:22.5]} 34. Bc1 {[%clk
0:02:19]} 34... Ra1 {[%clk 0:03:18.7]} 35. Bh6 {[%clk 0:02:12]} 35... c2 {[%clk
0:03:16.8]} 0-1

[Event "Live Chess"]
[Site "Chess.com"]
[Date "2024.06.02"]
[Round "-"]
[White "Delacorta"]
[Black "RichardABates"]
[Result "0-1"]
[WhiteElo "1525"]
[BlackElo "2359"]
[TimeControl "300"]
[EndTime "23:49:09 PDT"]
[Termination "RichardABates won by checkmate"]

1. d4 {[%clk 0:04:57.3]} 1... Nf6 {[%clk 0:04:58.3]} 2. Nf3 {[%clk 0:04:56.3]}
2... g6 {[%clk 0:04:56.4]} 3. e3 {[%clk 0:04:52.6]} 3... Bg7 {[%clk 0:04:54.6]}
4. Be2 {[%clk 0:04:51]} 4... O-O {[%clk 0:04:53.2]} 5. c4 {[%clk 0:04:48.4]}
5... d6 {[%clk 0:04:51.7]} 6. Nc3 {[%clk 0:04:46.6]} 6... Nbd7 {[%clk
0:04:50.1]} 7. h4 {[%clk 0:04:42]} 7... e5 {[%clk 0:04:47.6]} 8. dxe5 {[%clk
0:04:34]} 8... dxe5 {[%clk 0:04:44.3]} 9. Ng5 {[%clk 0:04:28.8]} 9... h6 {[%clk
0:04:41.6]} 10. Nge4 {[%clk 0:04:27.7]} 10... Nxe4 {[%clk 0:04:39.6]} 11. Nxe4
{[%clk 0:04:26.4]} 11... f5 {[%clk 0:04:38.2]} 12. Nc3 {[%clk 0:04:19.6]} 12...
c6 {[%clk 0:04:30.9]} 13. h5 {[%clk 0:04:05.9]} 13... g5 {[%clk 0:04:29.5]} 14.
Bd3 {[%clk 0:04:02.1]} 14... e4 {[%clk 0:04:26.9]} 15. Nxe4 {[%clk 0:03:59.8]}
15... fxe4 {[%clk 0:04:24.7]} 16. Bxe4 {[%clk 0:03:58.9]} 16... Nc5 {[%clk
0:04:22.2]} 17. Bg6 {[%clk 0:03:40.4]} 17... Qxd1+ {[%clk 0:04:13.3]} 18. Kxd1
{[%clk 0:03:39.4]} 18... Rxf2 {[%clk 0:04:10.5]} 19. e4 {[%clk 0:03:06.8]} 19...
Bg4+ {[%clk 0:04:06.8]} 20. Ke1 {[%clk 0:03:02.6]} 20... Nd3# {[%clk 0:04:05.2]}
0-1

[Event "Live Chess"]
[Site "Chess.com"]
[Date "2024.06.02"]
[Round "-"]
[White "MagnersCarlsberg2870"]
[Black "SavagePawn7"]
[Result "1-0"]
[WhiteElo "1824"]
[BlackElo "641"]
[TimeControl "300"]
[EndTime "23:51:02 PDT"]
[Termination "MagnersCarlsberg2870 won by resignation"]

1. d4 {[%clk 0:04:57.9]} 1... e5 {[%clk 0:04:57.3]} 2. dxe5 {[%clk 0:04:55.6]}
2... d6 {[%clk 0:04:55.7]} 3. Nf3 {[%clk 0:04:53.6]} 3... dxe5 {[%clk
0:04:53.7]} 4. Qxd8+ {[%clk 0:04:51.8]} 4... Kxd8 {[%clk 0:04:51.5]} 5. Nxe5
{[%clk 0:04:50.9]} 5... Nf6 {[%clk 0:04:48.6]} 6. Nxf7+ {[%clk 0:04:49.5]} 6...
Ke8 {[%clk 0:04:42.5]} 7. Nxh8 {[%clk 0:04:48.4]} 7... Be6 {[%clk 0:04:38.1]} 8.
e4 {[%clk 0:04:46.2]} 8... Nxe4 {[%clk 0:04:31.8]} 9. Bd3 {[%clk 0:04:43.4]}
9... Nc5 {[%clk 0:04:27.1]} 10. O-O {[%clk 0:04:40.2]} 10... Nc6 {[%clk
0:04:20.3]} 11. Re1 {[%clk 0:04:38.5]} 11... Rd8 {[%clk 0:04:10.9]} 12. Rxe6+
{[%clk 0:04:36.4]} 12... Nxe6 {[%clk 0:04:08.6]} 13. Nc3 {[%clk 0:04:28.9]}
13... Bc5 {[%clk 0:03:43.1]} 14. Bxh7 {[%clk 0:04:20.2]} 14... Kd7 {[%clk
0:03:41.1]} 15. Nf7 {[%clk 0:04:15.7]} 15... Kc8 {[%clk 0:03:36.4]} 16. Nxd8
{[%clk 0:04:13.1]} 16... Ncxd8 {[%clk 0:03:33.8]} 17. Bf5 {[%clk 0:04:11.8]} 1-0

[Event "Live Chess"]
[Site "Chess.com"]
[Date "2024.06.02"]
[Round "-"]
[White "elephantgerrald"]
[Black "NAZRIZ1977"]
[Result "0-1"]
[WhiteElo "839"]
[BlackElo "2099"]
[TimeControl "300"]
[EndTime "23:51:17 PDT"]
[Termination "NAZRIZ1977 won by checkmate"]

1. e4 {[%clk 0:04:58.1]} 1... c5 {[%clk 0:04:58.6]} 2. Nf3 {[%clk 0:04:57]} 2...
d6 {[%clk 0:04:57.8]} 3. Bc4 {[%clk 0:04:56.2]} 3... Nc6 {[%clk 0:04:55.2]} 4.
d3 {[%clk 0:04:54.6]} 4... Nf6 {[%clk 0:04:52.4]} 5. Nc3 {[%clk 0:04:53.9]} 5...
Bg4 {[%clk 0:04:51.1]} 6. Bf4 {[%clk 0:04:52.8]} 6... Nd4 {[%clk 0:04:49.9]} 7.
Nb1 {[%clk 0:04:46.7]} 7... Nxf3+ {[%clk 0:04:42.5]} 8. gxf3 {[%clk 0:04:44.8]}
8... Bh3 {[%clk 0:04:40.4]} 9. Nc3 {[%clk 0:04:40.9]} 9... a6 {[%clk 0:04:39.4]}
10. Qe2 {[%clk 0:04:39.7]} 10... e6 {[%clk 0:04:37.1]} 11. O-O-O {[%clk
0:04:38.4]} 11... b5 {[%clk 0:04:30.8]} 12. Bb3 {[%clk 0:04:35.6]} 12... g6
{[%clk 0:04:25.9]} 13. d4 {[%clk 0:04:32.1]} 13... c4 {[%clk 0:04:24.4]} 14.
Bxc4 {[%clk 0:04:27.9]} 14... bxc4 {[%clk 0:04:23.1]} 15. Qxc4 {[%clk
0:04:26.7]} 15... Qc8 {[%clk 0:03:51.1]} 16. Qa4+ {[%clk 0:04:21.9]} 16... Qd7
{[%clk 0:03:50]} 17. Qc4 {[%clk 0:04:15.6]} 17... Be7 {[%clk 0:03:34.2]} 18. e5
{[%clk 0:04:13.3]} 18... Nh5 {[%clk 0:03:32.4]} 19. Bh6 {[%clk 0:04:10.2]} 19...
d5 {[%clk 0:03:29.1]} 20. Qe2 {[%clk 0:04:05.6]} 20... Rb8 {[%clk 0:03:18.2]}
21. Qxa6 {[%clk 0:04:02]} 21... Qb7 {[%clk 0:03:11.2]} 22. Qa4+ {[%clk
0:03:55.5]} 22... Qd7 {[%clk 0:03:07.5]} 23. Qxd7+ {[%clk 0:03:53.9]} 23... Kxd7
{[%clk 0:03:06.5]} 24. Rhg1 {[%clk 0:03:48.6]} 24... Rhc8 {[%clk 0:02:54]} 25.
a4 {[%clk 0:03:41.7]} 25... Rb4 {[%clk 0:02:47.8]} 26. Bd2 {[%clk 0:03:33.6]}
26... Bh4 {[%clk 0:02:39.9]} 27. Nxd5 {[%clk 0:03:29]} 27... Rbb8 {[%clk
0:02:24.8]} 28. Nc3 {[%clk 0:03:20.5]} 28... Bxf2 {[%clk 0:02:23.2]} 29. Rg5
{[%clk 0:03:16.6]} 29... Bh4 {[%clk 0:02:09.7]} 30. Rgg1 {[%clk 0:03:10.9]}
30... Bf2 {[%clk 0:02:06.5]} 31. Rg5 {[%clk 0:03:08.6]} 31... h6 {[%clk
0:02:05]} 32. Rxh5 {[%clk 0:02:55.9]} 32... gxh5 {[%clk 0:02:03.6]} 33. Bxh6
{[%clk 0:02:55.3]} 33... Bh4 {[%clk 0:01:41.1]} 34. d5 {[%clk 0:02:52.7]} 34...
exd5 {[%clk 0:01:39]} 35. Rxd5+ {[%clk 0:02:48.8]} 35... Ke6 {[%clk 0:01:38]}
36. Rd6+ {[%clk 0:02:41.9]} 36... Kxe5 {[%clk 0:01:35.9]} 37. Rd5+ {[%clk
0:02:37.1]} 37... Ke6 {[%clk 0:01:33.8]} 38. Rxh5 {[%clk 0:02:33.5]} 38... Bf6
{[%clk 0:01:23.9]} 39. Rxh3 {[%clk 0:02:26.6]} 39... Bxc3 {[%clk 0:01:02.5]} 40.
bxc3 {[%clk 0:02:24.6]} 40... Rxc3 {[%clk 0:01:02.4]} 41. Bd2 {[%clk 0:02:15.9]}
41... Ra3 {[%clk 0:00:56.6]} 42. Rh6+ {[%clk 0:02:13]} 42... Kf5 {[%clk
0:00:54]} 43. Rh5+ {[%clk 0:02:08.2]} 43... Kg6 {[%clk 0:00:46.6]} 44. Rh6+
{[%clk 0:02:03.2]} 44... Kg7 {[%clk 0:00:42]} 45. Bc3+ {[%clk 0:01:48.1]} 45...
Kxh6 {[%clk 0:00:40.4]} 46. Bd2+ {[%clk 0:01:43.6]} 46... Kg6 {[%clk 0:00:38.9]}
47. Bf4 {[%clk 0:01:39.8]} 47... Rxa4 {[%clk 0:00:37.3]} 48. Bxb8 {[%clk
0:01:37]} 48... Rh4 {[%clk 0:00:35.8]} 49. Kb2 {[%clk 0:01:34.3]} 49... Rb4+
{[%clk 0:00:33.9]} 50. Kc3 {[%clk 0:01:31.1]} 50... Rxb8 {[%clk 0:00:33.8]} 51.
Kd4 {[%clk 0:01:30.1]} 51... Kf5 {[%clk 0:00:33]} 52. c4 {[%clk 0:01:29.1]}
52... Kf4 {[%clk 0:00:32.3]} 53. c5 {[%clk 0:01:28.2]} 53... Kxf3 {[%clk
0:00:31.7]} 54. Kd5 {[%clk 0:01:27.5]} 54... f5 {[%clk 0:00:30.8]} 55. c6 {[%clk
0:01:26.6]} 55... f4 {[%clk 0:00:30.1]} 56. Kd6 {[%clk 0:01:26.5]} 56... Rb6
{[%clk 0:00:28.8]} 57. Kd7 {[%clk 0:01:24.9]} 57... Kg2 {[%clk 0:00:26.5]} 58.
c7 {[%clk 0:01:23.2]} 58... Rb7 {[%clk 0:00:25.7]} 59. Kd8 {[%clk 0:01:22.2]}
59... Rxc7 {[%clk 0:00:25.6]} 60. Kxc7 {[%clk 0:01:21.2]} 60... Kxh2 {[%clk
0:00:25.5]} 61. Kd6 {[%clk 0:01:21]} 61... f3 {[%clk 0:00:24.9]} 62. Ke5 {[%clk
0:01:20.9]} 62... f2 {[%clk 0:00:24.8]} 63. Ke4 {[%clk 0:01:20.7]} 63... f1=Q
{[%clk 0:00:24.7]} 64. Kd5 {[%clk 0:01:20.3]} 64... Qe2 {[%clk 0:00:24]} 65. Kd6
{[%clk 0:01:19.2]} 65... Qe3 {[%clk 0:00:23.4]} 66. Kd5 {[%clk 0:01:18]} 66...
Kg3 {[%clk 0:00:22.5]} 67. Kc4 {[%clk 0:01:16.7]} 67... Qd2 {[%clk 0:00:21.6]}
68. Kc5 {[%clk 0:01:15.6]} 68... Qd3 {[%clk 0:00:20.7]} 69. Kc6 {[%clk
0:01:14.4]} 69... Qd4 {[%clk 0:00:19.9]} 70. Kb5 {[%clk 0:01:13.7]} 70... Qc3
{[%clk 0:00:19.1]} 71. Kb6 {[%clk 0:01:12.6]} 71... Qc4 {[%clk 0:00:18.3]} 72.
Kb7 {[%clk 0:01:11.3]} 72... Qc5 {[%clk 0:00:17.5]} 73. Ka6 {[%clk 0:01:10]}
73... Qb4 {[%clk 0:00:16.6]} 74. Ka7 {[%clk 0:01:08.6]} 74... Kf4 {[%clk
0:00:16.5]} 75. Ka6 {[%clk 0:01:06.6]} 75... Ke5 {[%clk 0:00:16.4]} 76. Ka7
{[%clk 0:00:58.6]} 76... Kd6 {[%clk 0:00:16.3]} 77. Ka8 {[%clk 0:00:56.1]} 77...
Kc7 {[%clk 0:00:16.2]} 78. Ka7 {[%clk 0:00:49.9]} 78... Qb6+ {[%clk 0:00:16.1]}
79. Ka8 {[%clk 0:00:47.1]} 79... Qa6# {[%clk 0:00:16]} 0-1